Workbook

Sheet Vorbemerkung
B1: Vorbemerkung
B3: Die Berechnung des Kinderunterhalts in Fällen, in denen beide Eltern erhebliche Betreuungsanteile übernehmen, ist nicht ganz banal. Dies hängt unter anderem damit zusammen, dass durch die Residenz der Kinder in zwei unterschiedlichen Haushalten ein unterhaltsrechtlicher Mehrbedarf entstehen kann, der in erhöhtem Wohnkostenbedarf, erhöhten Transportkosten aber auch einfach dadurch entsteht, dass ein Teil des Equipments der Kinder in beiden Haushalten vorhanden sein muss. Durch diese Mehrkosten unterscheidet sich eine Unterhaltsberechnung für Kinder in zwei Residenzhaushalten deutlich von der Situation eines Residenzmodells bei einem Elternteil mit mehr oder minder ausgedehnten Umgangsanteilen des anderen Elternteils. In dem hier vorgeschlagenen Berechnungsmodell kann nicht nur beim nahezu paritätischen Betreuungsmodell der Unterhaltsbedarf, und die von den Eltern aufzubringenden Deckungsanteile für diesen Bedarf, berechnet werden, sondern bis zu einer Verteilung 30:70 kann ein Verteilungsvorschlag entwickelt werden. Die Rechtsprechung des Bundesgerichtshofs nimmt eine solche Verteilung nur bei annähernd Parität der Betreuungsanteile der beiden Eltern an. Dies erscheint nicht gerechtfertigt. Die Unterhaltsverteilung im Wechselmodell ist allerdings sehr abhängig von den konkreten Bedingungen und für ein streitiges Unterhaltsverfahren wenig geeignet. Bei Streit um die Unterhaltsverteilung werden die Eltern dazu neigen, ihre Betreuungsanteile zulasten des anderen Elternteils zu erhöhen. Damit wäre auch ein beiderseitiges Betreuungsmodell gescheitert. Deshalb eignet sich das hier vorgeschlagene Berechnungsmodell eher dazu, für die betreuenden Elternteile einen Verteilungsvorschlag zu entwickeln, als ein wirklich belastbares Berechnungsmodell. Gerade in Fällen beiderseitiger Betreuung der Kinder durch die Eltern nach Trennung und Scheidung geht es darum, angemessene Lösungen zu entwickeln. Solche Lösungen sind in aller Regel nicht in standardisierten Rechenschablonen zu entwickeln. Jedes Berechnungsergebnis im Unterhaltsrecht ist stets auf Angemessenheit zu überprüfen. Für Laien ist es immer empfehlenswert, bei der Entwicklung einer Unterhaltslösung anwaltlichen Rat einzuholen. Duisburg, im Dezember 2017 Jörn Hauß

Sheet Berechnungsschema
B1: Unterhaltsverteilung bei Betreuung von Kindern getrennt lebender Eltern durch beide Eltern | L1: Bei Aktivierung dieser Option wird der Wohnmehrbedarf für jeden Elternteil mit 20% des Tabellenbedarfs kalkuliert | O1: Runden | P1: 3
B2: Die gelb hinterlegten Felder können ausgefüllt werden. Keine Mangelfallberechnung möglich! Navigation mit Tab-Taste. ©Rechtsanwalt Jörn Hauß, Vom-Rath-Str. 10, 47051 Duisburg, Tel: 0203/286870, Hauss@anwaelte-du.de | K2: =IF(T7>1,"Einkommensstufe manuell gewählt!","") ->  | L2: ="Zur Erzielung eines ange-messenen Ergebnisses kann die Ein-kommensstufe auch manuell gewählt werden"&CHAR(10)&" >>>>>>>>>" -> Zur Erzielung eines ange-messenen Ergebnisses kann die Ein-kommensstufe auch manuell gewählt werden >>>>>>>>> | R2: =+R9+F13 -> 0
A3: 1 | B3: Berechnungsdatum: | E3: =TODAY() -> 2022-01-18 | F3: Vater | G3: Mutter
A4: 2 | B4: bereinigtes anrechenbares Nettoeinkommen: | K4: =IFERROR("Einkommensstufe: "&TEXT(T9,"#"),"") -> Einkommensstufe: 1
A5: 3 | B5: Namen der Kinder eingebeni | E5: Geburtstagi | F5: Tabellenunterhalt
A6: 4 | F6: =IFERROR(IF(E6="",0,VLOOKUP(T9,IF(YEAR(Berechnungsdatum)<2021,DDorf21,DDorf22),P9+2)),"") -> 0 | K6: =IF(E6="","","Altersstufe: "&TEXT(P9,"0")) -> 
A7: 7 | B7: Selbstbehalt nach Düsseldorfer Tabelle | F7: =IFERROR(IF(F4=0,0,-VLOOKUP(Berechnungsdatum,Selbstbehalte,IF(Mangelfall=1,3,5))),"") -> 0 | G7: =IFERROR(IF(G4=0,0,-VLOOKUP(Berechnungsdatum,Selbstbehalte,IF(Mangelfall=1,3,5))),"") -> 0 | O7: Alter | P7: Gruppe | Q7: Mindestbedarf | R7: Bdf nach E Vater | S7: Bdf nach E Mutter | T7: 1 | U7: automatisch
A8: 8 | B8: =IFERROR("Einkommensteil zur Erfüllung von Unterhaltsansprüchen: "&IF(F4>0,TEXT(F4,"#.##0,00")&" - "&TEXT(ABS(F7),"#.##0,00")&" / ","")&IF(G4>0,TEXT(G4,"#.##0,00")&" - "&TEXT(ABS(G7),"#.##0,00"),""),"") -> Einkommensteil zur Erfüllung von Unterhaltsansprüchen: | F8: =IFERROR(IF(F4+F7<0,0,F4+F7),"") -> 0 | G8: =IFERROR(IF(+G4+G7<0,0,+G4+G7),"") -> 0 | K8: modellbedingter Mehrbedarf | L8: getragen von: | T8: Tabellenstufe | U8: 1
A9: 9 | B9: ="Anteilsquote mit der der Bedarf zu erfüllen ist: "&IF(F8>0,"V: "&TEXT(F8,"#.##0,00")&"/("&TEXT(F8,"#.##0,00")&" + "&TEXT(G8,"#.##0,00")&")","")&CHAR(10)&IF(G8>0,".........................................................................M: "&TEXT(G8,"#.##0,00")&"/("&TEXT(G8,"#.##0,00")&" + "&TEXT(F8,"#.##0,00")&")","") -> Anteilsquote mit der der Bedarf zu erfüllen ist: | F9: =IFERROR(ROUND(F8/(F8+G8),Runden2),"") ->  | G9: =IFERROR(ROUND(G8/(G8+F8),Runden2),"") ->  | L9: Vater | M9: Mutter | O9: =YEARFRAC(E6,Berechnungsdatum,3) -> 122.1342466 | P9: =IF(O9=0,0,IF(O9>=18,4,IF(O9>=12,3,IF(Berechnungsschema!O9>=6,2,1)))) -> 4 | Q9: =VLOOKUP(1,CHOOSE(YEAR(Berechnungsdatum)-2018,DDorfer19,DDorf20,DDorf21,DDorf22),P9+2) -> 569 | R9: =IF(F4<1050,0,VLOOKUP(F4,CHOOSE(YEAR(Berechnungsdatum)-2018,DDorfer19,DDorf20,DDorferkomplett21,DDorf22),P9+1,TRUE)) -> 0 | S9: =IF(G4<1050,0,VLOOKUP(G$4,CHOOSE(YEAR(Berechnungsdatum)-2018,DDorfer19,DDorf20,DDorferkomplett21,DDorf22),P9+1)) -> 0 | T9: =IF(T$7>1,T$7-1,VLOOKUP(F$4+G$4,IF(YEAR(Berechnungsdatum)<2020,DDorf20komplett,DDorf21komplett),7)) -> 1 | U9: 2
A10: 10 | B10: =IFERROR(IF(F6+F37=0,"","Erfüllungsquote des Gesamtbedarfs der Kinder: "&IF(F10<1,"("&IF(F8>0,TEXT(F8,"#,00"),"0,00")&IF(G8>0," + "&TEXT(G8,"0,00")&")","0,00")&"/("&TEXT(F6,"#,00")&" + "&TEXT(F37,"#,00")&")","")),"") ->  | F10: =IFERROR(ROUND(IF(F37+F6=0,0,IF((F8+G8)/(F37+F13+F6+F40)<1,(F8+G8)/(F37+F13+F6+F40),1)),2),"") -> 0 | K10: =IF(Wohnbedarfsreduktion,"Wohnmehrkosten 20%","") ->  | L10: =IF(L11>0,0,IF(Wohnbedarfsreduktion,F11*0.2,"")) ->  | M10: =IF(M11>0,0,IF(Wohnbedarfsreduktion,F11*0.2,"")) ->  | O10: =IF(E37="",0,YEARFRAC(E37,Berechnungsdatum,3)) -> 0 | P10: =IF(O10=0,0,IF(O10>=18,4,IF(O10>=12,3,IF(Berechnungsschema!O10>=6,2,1)))) -> 0 | Q10: =VLOOKUP(1,CHOOSE(YEAR(Berechnungsdatum)-2018,DDorfer19,DDorf20,DDorf21,DDorf22),P10+2) -> 0 | R10: =IF(E37=0,0,VLOOKUP(F$4,CHOOSE(YEAR(Berechnungsdatum)-2018,DDorfer19,DDorf20,DDorf21,DDorf22),P10+1)) -> 0 | S10: =IF(G5<1050,0,VLOOKUP(G$4,CHOOSE(YEAR(Berechnungsdatum)-2018,DDorfer19,DDorf20,DDorferkomplett21,DDorf22),P10+1)) -> 0 | T10: =IF(T$7>1,T$7-1,VLOOKUP(F$4+G$4,IF(YEAR(Berechnungsdatum)<2020,DDorf20komplett,DDorf21komplett),7)) -> 1 | U10: 3
A11: 11 | B11: =IFERROR(B6&": Bedarf aus zusammengerechnetem Einkommen nach Düsseldorfer Tabelle "&TEXT(P9,"#")&"/"&TEXT(T9,"#")&IF(Mangelfall=1," Mangelfall",""),"") -> : Bedarf aus zusammengerechnetem Einkommen nach Düsseldorfer Tabelle 4/1 Mangelfall | F11: =IFERROR(IF(E6=0,0,IF(Mangelfall=0,F6,VLOOKUP(1,CHOOSE(YEAR(Berechnungsdatum)-2018,DDorfer19,DDorf20,DDorf21),P9+2))),"") -> 0 | K11: Wohnkosten: | P11: =IF(O11=0,0,IF(O11>=18,4,IF(O11>=12,3,IF(Berechnungsschema!O11>=6,2,1)))) -> 0 | Q11: =VLOOKUP(1,CHOOSE(YEAR(Berechnungsdatum)-2018,DDorfer19,DDorf20,DDorf21,DDorf22),P11+2) -> 0 | R11: =IF(E38=0,0,VLOOKUP(F$4,CHOOSE(YEAR(Berechnungsdatum)-2018,DDorfer19,DDorf20,DDorf21,DDorf22),P11+1)) -> 0 | S11: =IF(G6<1050,0,VLOOKUP(G$4,CHOOSE(YEAR(Berechnungsdatum)-2018,DDorfer19,DDorf20,DDorferkomplett21,DDorf22),P11+1)) -> 0 | T11: =IF(T$7>1,T$7-1,VLOOKUP(F$4+G$4,IF(YEAR(Berechnungsdatum)<2020,DDorf20komplett,DDorf21komplett),7)) -> 1 | U11: 4
K12: Fahrtkosten: | O12: =IF(E64="",0,YEARFRAC(E64,Berechnungsdatum,3)) -> 0 | P12: =IF(O12=0,0,IF(O12>=18,4,IF(O12>=12,3,IF(Berechnungsschema!O12>=6,2,1)))) -> 0 | Q12: =VLOOKUP(1,CHOOSE(YEAR(Berechnungsdatum)-2018,DDorfer19,DDorf20,DDorf21,DDorf22),P12+2) -> 0 | R12: =IF(E64=0,0,VLOOKUP(F$4,CHOOSE(YEAR(Berechnungsdatum)-2018,DDorfer19,DDorf20,DDorf21,DDorf22),P12+1)) -> 0 | S12: =IF(G7<1050,0,VLOOKUP(G$4,CHOOSE(YEAR(Berechnungsdatum)-2018,DDorfer19,DDorf20,DDorferkomplett21,DDorf22),P12+1)) -> 0 | T12: =IF(T$7>1,T$7-1,VLOOKUP(F$4+G$4,IF(YEAR(Berechnungsdatum)<2020,DDorf20komplett,DDorf21komplett),7)) -> 1 | U12: 5
A13: 12 | B13: Barbedarfsanteil des Kindergeldes wird bei beiderseitigen Elterneinkünften in Zeile 25 berücksichtigt | F13: =IFERROR(IF(Geburtstag1="",0,-VLOOKUP(Berechnungsdatum,Kindergeldtabelle,2)/2),"") -> 0 | K13: Betreuungskosten: | P13: =IF(E37="","","Altersstufe: "&TEXT(P10,"0")) ->  | Q13: =VLOOKUP(1,CHOOSE(YEAR(Berechnungsdatum)-2018,DDorfer19,DDorf20,DDorf21,DDorf22),1) -> 1 | U13: 6
A14: 13 | B14: ="Regelbarbedarf nach Düsseldorfer Tabelle "&IF(Wohnbedarfsreduktion," um Kosten des Wohnens in Höhe von 20% reduziert","") -> Regelbarbedarf nach Düsseldorfer Tabelle | F14: =IFERROR((F13+F11*IF(Wohnbedarfsreduktion,0.8,1))*F$10,"") -> 0 | K14: Kindergarten: | U14: 7
A15: 14 | B15: ="Barbedarfsanteile nach Einkommen: Vater: "&TEXT(F14,"0,00")&" x "&TEXT(F$9,"0,0%")&" / Mutter: "&TEXT(F14,"0,00")&" x "&TEXT(G$9,"0,0%") -> Barbedarfsanteile nach Einkommen: Vater: 0,00 x / Mutter: 0,00 x | F15: =ROUND(IFERROR(F14*F$9,0),Runden2) -> 0 | G15: =ROUND(IFERROR(F14*G$9,0),Runden2) -> 0 | K15: Sonstiges: | O15: =+F9*F19 ->  | P15: =+G9*G19 ->  | R15: Summe der Einkünfte: | S15: =+G4+F4 -> 0 | U15: 8
A16: 15 | B16: Wohn- und sonstiger Mehrbedarf für das Kind bei dem Elternteil, bei dem er entsteht | F16: =ROUND(L16,Runden2) -> 0 | G16: =ROUND(M16,Runden2) -> 0 | J16: < | K16: ="<<<<<<<<<<Summe: "&TEXT(L16+M16,"#.##0,00") -> <<<<<<<<<<Summe: 0,00 | L16: =SUM(L10:L15) -> 0 | M16: =SUM(M10:M15) -> 0 | R16: Selbstbehalte | S16: -2600 | U16: 9
A17: 16 | B17: ="Begrenzung nach Einkommen Vater: ("&IF(R$9>0,TEXT(R$9,"0,00")&" - "&TEXT(ABS(F13),"0,00")&")"&IF(F16>0," + "&TEXT(F16+G16,"0,00")&") x "&TEXT(F$9,"0%"),""),"")&IF(S$9>0," / Mutter: ("&TEXT(S$9,"0,00")&" - "&TEXT(ABS(F13),"0,00")&")"&IF(F16+G16>0," + "&TEXT(G16+F16,"0,00")&") x "&TEXT(G$9,"0%"),""),"") -> Begrenzung nach Einkommen Vater: ( | F17: =IF(F$4=0,0,VLOOKUP(F$4,IF(YEAR(Berechnungsdatum)<2021,DDorf20,DDorf22),P$9+1)+F13+(F16+G16)*F$9) -> 0 | G17: =IF(S$9>0,VLOOKUP(G$4,IF(YEAR(Berechnungsdatum)<2021,DDorf20,DDorf21komplett),P$9+1)+F13+(F16+G16)*G$9,0) -> 0 | O17: FALSE | R17: Rest | S17: =+S16+S15 -> -2600 | U17: 10
A18: 16 | B18: =IF(O22+P22=0,"quotale Zahlbeträge aus Bedarf von "&TEXT(P21,"#.##0,00 €")&IF(F1>0," ("&TEXT(F14,"0,00")&" + "&TEXT(F16+G16,"0,00")&")","")&IF(F$9>0," Vater:"&IF(F18=F17," gekappt "," x "&TEXT(F$9,"0,0%")),"")&IF(G$9>0," / Mutter: "&IF(G18=G17," gekappt "," x "&TEXT(G$9,"0.0%")),""),"Zahlbeträge unter Beachtung der Leistingsfähigkeit aus eigenem Einkommen:") -> quotale Zahlbeträge aus Bedarf von 0,00 € Vater: gekappt / Mutter: gekappt | F18: =ROUND(IFERROR(IF(F15>F17,F17,F15),""),Runden2) -> 0 | G18: =ROUND(IFERROR(IF(G15>G17,G17,G15),""),Runden2) -> 0 | K18: Aus dem Regelbedarf reguliert | L18: getragen von | O18: =+G15+F15 -> 0 | R18: Summe Mindesbedarf | S18: =+Q13 -> 1
A19: 17 | B19: Betreungsanteil in % eingeben (welchen prozentualen Anteil hat der Vater an der Betreuung?) | F19: 0.5 | G19: =1-F19 -> 0.5 | L19: Vater | M19: Mutter | R19: Mangelfall: | S19: =IF(S17-S18<0,1,0) -> 1
A20: 18 | B20: vom Elternteil tatsächlich getragener Anteil aus dem Regelbedarf (z.B. Essensgeld oder Kleidung) | F20: =+L20 -> 0 | G20: =+M20 -> 0 | J20: < | K20: <<<<<<<<<<<<Betrag: | R20: Mangelquote
A21: 19 | B21: ="in Natura erbrachte Leistung nach Betreuungsteilen: Vater: "&IF(F20+G20>0,"(","")&TEXT(F14,"0,00")&IF(F20>0," - "&TEXT(F20,"#.##0,00"),"")&IF(G20>0," - "&TEXT(G20,"#.##0,00")&")",IF(F20+G20>0,")",""))&" x "&TEXT(F19,"0%")&IF(F20>0," + "&TEXT(F20,"#.##0,00"),"")&CHAR(10)&"................................................................................ Mutter : "&IF(F20+G20>0,"(","")&TEXT(F14,"0,00")&IF(F20>0," - "&TEXT(F20,"#.##0,00"),"")&IF(G20>0," - "&TEXT(G20,"#.##0,00")&")",IF(F20+G20>0,")",""))&" x "&TEXT(G19,"0%")&IF(G20>0," + "&TEXT(G20,"#.##0,00"),"") -> in Natura erbrachte Leistung nach Betreuungsteilen: Vater: 0,00 x 50% ................................................................................ Mutter : 0,00 x 50% | F21: =IF(F$4=0,0,+F19*(F14-F20-G20)+F20) -> 0 | G21: =IF(G$4=0,0,+G19*(F14-F20-G20)+G20) -> 0 | K21: Ernährungskosten, Kosten für Hobby und Freizeitgestaltung sind im Tabellenunterhaltsbedarf enthalten. Zahlt einer der Eltern solche Kosten vereinbarungsgemäß regelmäßig, wären sie hier einzutragen. Beispiel: Die im KiTa-Beitrag (modellbedingter Mehrbedarf) enthaltenen Essenskosten. | O21: FALSE | P21: =+G18+F18 -> 0
A22: 20 | B22: ="Vom Elternteil erbrachter Naturalunterhalt: Vater: "&TEXT(F21,"0,00")&IF(F16>0," + "&TEXT(F16,"0,00"),"")&IF(F20>0," + "&TEXT(F20,"#.##0,00"),"")&" / Mutter: "&TEXT(G21,"0,00")&IF(G16>0," + "&TEXT(G16,"0,00"),"") -> Vom Elternteil erbrachter Naturalunterhalt: Vater: 0,00 / Mutter: 0,00 | F22: =-F21-F16 -> 0 | G22: =-G21-G16 -> 0 | O22: =IF(F17<F15,1,0) -> 0 | P22: =IF(G17<G15,1,0) -> 0
A23: 21 | B23: =IF(F23>0,"Vom Vater an die Mutter für das Kind zu zahlender Unterhalt: "&TEXT(F18,"0,00")&" - "&TEXT(ABS(F22),"0,00")&" = "&TEXT(F23,"0,00 €"),"")&IF(G23>0,"Von der Mutter an den Vater für das Kind zu zahlender Unterhalt: "&TEXT(G18,"0,00")&" - "&TEXT(ABS(G22),"0,00")&" = "&TEXT(G23,"0,00 €"),"") ->  | F23: =+F18+F22 -> 0 | G23: =+G18+G22 -> 0 | O23: =+G21+F21 -> 0 | T23: BdfKlinki
A24: 22 | B24: ="Wer erhält das Kindergeld in Höhe von "&TEXT(2*KindergeldHälfte*-1,"## €") -> Wer erhält das Kindergeld in Höhe von € | O24: =+G18+F18 -> 0 | T24: KGKlinki
A25: 23 | B25: =IFERROR("Kindergeldhälfte nach Betreuungsquote auszkehren "&IF(Q29=1,"von V an M: ","von M an V: ")&"in Höhe von: "&TEXT(ABS(Q27+P27),"0,00")&" x "&IF(Q29=1,TEXT(G19,"##%"),TEXT(F19,"##%")),"") -> Kindergeldhälfte nach Betreuungsquote auszkehren von M an V: in Höhe von: 0,00 x 50% | F25: =ROUND(IF(Kindergeld=1,-ABS((P27+Q27)*G19),-G25),2) -> 0 | G25: =IF(Kindergeld=1,-F25,-ABS((P27+Q27)*F19)) -> 0 | O25: =+G22+F22 -> 0
A26: 24 | B26: =IFERROR("Kindergeldhälfte ist "&IF(Kindergeld=1,"von V an M","von M an V")&" nach der Anteilsquote Barunterhalt auszukehren: "&IF(Kindergeld=1,TEXT(ABS(KindergeldHälfte),"0,00")&" x "&TEXT(ABS(G9),"0,00%"),TEXT(ABS(KindergeldHälfte),"0,00")&" x "&TEXT(F9,"0,0%")),"") -> Kindergeldhälfte ist von M an V nach der Anteilsquote Barunterhalt auszukehren: 0,00 x | F26: =IFERROR(IF(Kindergeld=1,-ABS(KindergeldHälfte)*G9,-G26),"") ->  | G26: =IFERROR(IF(Kindergeld=1,-F26,-ABS(KindergeldHälfte)*F9),"") ->  | K26: Selbstbehalte zum nachtragen | Q26: =IF(KGKlinki>0,-KGKlinki,F13) -> 0
A27: 25 | B27: =IFERROR("Ausgleichszahlung: "&IF(F27>0,"von Vater an Mutter: "&TEXT(F23,"#.##0,00")&IF(Kindergeld=1," + "&TEXT(ABS(F25),"##,00")&" + "&TEXT(ABS(F26),"#0,00")," - "&TEXT(ABS(F25),"##,00")&" - "&TEXT(ABS(F26),"#0,00")),"von Mutter an Vater: "&TEXT(F23,"#.##0,00")&IF(Kindergeld=1," + "&TEXT(ABS(F25),"##,00")&" + "&TEXT(ABS(F26),"#0,00")," - "&TEXT(ABS(F25),"##,00")&" - "&TEXT(ABS(F26),"#0,00"))),"") ->  | F27: =IFERROR(ROUND(+F23+G26+G25,Runden2),"") ->  | G27: =IFERROR(ROUND(G23+F26+F25,Runden2),"") ->  | K27: notwendiger SB nbt | P27: =IF(Q29=1,KindergeldHälfte,0) -> 0 | Q27: =IF(Q29=2,KindergeldHälfte,0) -> 0
A28: 26 | B28: Kindergeld: | F28: =IF(Kindergeld=1,-KindergeldHälfte*2,0) -> 0 | G28: =IF(Kindergeld=2,-KindergeldHälfte*2,0) -> 0 | K28: notwendiger SB bt
A29: 27 | B29: =IFERROR("Liquidität Vater: "&TEXT(F4,"#.##0,00")&IF(Kindergeld=1," + Kindergeld "&TEXT(F28,"#.##0,00"),"")&IF(F27<0," + "&TEXT(ABS(F27),"#0,00")," - "&TEXT(ABS(F27),"#0,00"))&" / "&"Liquidität Mutter: "&TEXT(G4,"#.##0,00")&IF(Kindergeld=2," + Kindergeld "&TEXT(G28,"#0,00"),"")&IF(G27<0," + "&TEXT(ABS(G27),"#0,00")," - "&TEXT(ABS(G27),"#0,00"))&" : ","") ->  | F29: =IFERROR(+F4+F28-F27,"") ->  | G29: =IFERROR(G4+G28-G27,"") ->  | K29: billiger SB | O29: FALSE | P29: Kindergeld: | Q29: 2
A30: 28 | B30: ="./. Kindesunterhalt: Vater: "&TEXT(ABS(F22),"#.##0,00")&IF(F23>0," + "," - ")&TEXT(ABS(F23),"#.##0,00")&" / Mutter: "&TEXT(ABS(G22),"#.##0,00")&IF(G23>0," + "," - ")&TEXT(ABS(G23),"#.##0,00") -> ./. Kindesunterhalt: Vater: 0,00 - 0,00 / Mutter: 0,00 - 0,00 | F30: =F22-F23 -> 0 | G30: =G22-G23 -> 0 | K30: angemessener SB
A31: 29 | B31: ="anrechenbares Resteinkommen: Vater: "&TEXT(F4,"#.##0,00")&" - "&TEXT(ABS(F30),"#.##0,00")&" / Mutter: "&TEXT(G4,"#.##0,00")&" - "&TEXT(ABS(G30),"#.##0,00") -> anrechenbares Resteinkommen: Vater: 0,00 - 0,00 / Mutter: 0,00 - 0,00 | F31: =+F4+F30 -> 0 | G31: =+G4+G30 -> 0
B32: II. weiteres Kind
A33: 30 | B33: =IFERROR(IF(Mangelfall=0,"angemessener Selbstbehalt nach Düsseldorfer Tabelle ","notwendiger Selbstbehalt nach Düsseldorfer Tabelle "),"") -> notwendiger Selbstbehalt nach Düsseldorfer Tabelle | F33: =IFERROR(-VLOOKUP(Berechnungsdatum,Selbstbehalte,IF(Mangelfall=1,3,5)),"") -> -1160 | G33: =IFERROR(-VLOOKUP(Berechnungsdatum,Selbstbehalte,IF(Mangelfall=1,3,5)),"") -> -1160 | O33: =+G30+F30 -> 0
A34: 31 | B34: =IFERROR("Einkommensteil zur Erfüllung von Unterhaltsansprüchen: "&IF(F27>0,TEXT(F31,"#.##0,00")&" - "&TEXT(ABS(F33),"#.##0,00")&" / ","")&IF(G31>0,TEXT(G31,"#.##0,00")&" - "&TEXT(ABS(G33),"#.##0,00"),""),"") -> Einkommensteil zur Erfüllung von Unterhaltsansprüchen: 0,00 - 1.160,00 / | F34: =IFERROR(+F31+F33,"") -> -1160 | G34: =IFERROR(+G33+G31,"") -> -1160
A35: 32 | B35: ="Anteilsquote mit der der Bedarf zu erfüllen ist: "&IF(F34>0,"V: "&TEXT(F34,"#.##0,00")&"/("&TEXT(F34,"#.##0,00")&" + "&TEXT(G34,"#.##0,00")&")","")&CHAR(10)&IF(G34>0,"...................................................................M: "&TEXT(G34,"#.##0,00")&"/("&TEXT(G34,"#.##0,00")&" + "&TEXT(F34,"#.##0,00")&")","") -> Anteilsquote mit der der Bedarf zu erfüllen ist: | F35: =+F9 ->  | G35: =+G9 ->  | K35: modellbedingter Mehrbedarf | L35: getragen von:
A36: 33 | E36: Geburtstagi | F36: Tabellenbedarf | L36: Vater | M36: Mutter
A37: 34 | F37: =IF(E37="",0,VLOOKUP(T10,IF(YEAR(Berechnungsdatum)<2021,DDorf20,DDorf21),P10+2)) -> 0 | K37: =IF(Wohnbedarfsreduktion,"Wohnmehrkosten 20%","") ->  | L37: =IF(L38>0,0,IF(Wohnbedarfsreduktion,F38*0.2,"")) ->  | M37: =IF(M38>0,0,IF(Wohnbedarfsreduktion,F38*0.2,"")) -> 
A38: 35 | B38: =IFERROR(B37&IF(B37<>"",": ","")&"Bedarf aus zusammengerechnetem Einkommen nach Düsseldorfer Tabelle "&IF(Mangelfall=1,"Mangelfall",""),"") -> Bedarf aus zusammengerechnetem Einkommen nach Düsseldorfer Tabelle Mangelfall | F38: =IF(E37=0,0,IF(Mangelfall=0,F37,VLOOKUP(1,IF(YEAR(Berechnungsdatum)<2021,DDorferTab20,DDorf21),P10+2))) -> 0 | K38: Wohnkosten:
A39: 36 | K39: Fahrtkosten:
A40: 37 | B40: Barbedarfsanteil des Kindergeldes wird im Rahmen der Kindergeldverteilung berücksichtigt | F40: =IF(E37="",0,-VLOOKUP(Berechnungsdatum,Kindergeldtabelle,3)/2) -> 0 | K40: Betreuungskosten:
A41: 38 | B41: =+B$14 -> Regelbarbedarf nach Düsseldorfer Tabelle | F41: =(F38)*F$10*IF(Wohnbedarfsreduktion,0.8,1)+F40 -> 0 | K41: Bekleidung:
A42: 39 | B42: Barbedarfsanteile | F42: =IFERROR(F41*F35,0) -> 0 | G42: =IFERROR(F41*G35,0) -> 0 | K42: Sonstiges:
A43: 40 | B43: Wohn- und sonstiger Mehrbedarf für das Kind eingeben | F43: =+L43 -> 0 | G43: =+M43 -> 0 | K43: ="<<<<<<<<<<Summe: "&TEXT(L43+M43,"#.##0,00") -> <<<<<<<<<<Summe: 0,00 | L43: =SUM(L37:L42) -> 0 | M43: =SUM(M37:M42) -> 0
A44: 41 | B44: ="Begrenzung nach Einkommen Vater: "&IF(R$9>0,TEXT(R$9,"0,00")&" - "&TEXT(ABS(F40),"0,00")&IF(F43>0," + "&TEXT(F43+G43,"0,00")&" x "&TEXT(F$9,"0%"),""),"")&IF(S$9>0," / Mutter: "&TEXT(S$9,"0,00")&" - "&TEXT(ABS(F40),"0,00")&IF(F43+G43>0," + "&TEXT(G43+F43,"0,00")&" x "&TEXT(G$9,"0%"),""),"") -> Begrenzung nach Einkommen Vater: | F44: =IF(F$4=0,0,VLOOKUP(F$4,IF(YEAR(Berechnungsdatum)<2018,DDorferTab17,DDorferTab18),P$10+1)+F40+(F43+G43)*F$9) -> 0 | G44: =IF(S$9>0,VLOOKUP(G$4,IF(YEAR(Berechnungsdatum)<2018,DDorferTab17,DDorferTab18),P$10+1)+F40+(F43+G43)*G$9,0) -> 0
A45: 42 | B45: =IFERROR(IF(O46+P46=0,"quotale Zahlbeträge aus Bedarf ("&TEXT(F41,"0,00")&" + "&TEXT(F43+G43,"0,00")&")"&IF(F35>0," Vater:"&IF(F45=F44," gekappt "," x "&TEXT(F35,"0,0%")),"")&IF(G35>0," / Mutter: "&IF(G45=G44," gekappt "," x "&TEXT(G35,"0,0%")),""),"Zahlbeträge unter Beachtung der Leistingsfähigkeit aus eigenem Einkommen:"),"") -> quotale Zahlbeträge aus Bedarf (0,00 + 0,00) Vater: x / Mutter: x | F45: =IFERROR(ROUND((F41+F43+G43)*F$35,Runden2),"") ->  | G45: =IFERROR(ROUND((F41+F43+G43)*G$35,Runden2),"") ->  | K45: Aus dem Regelbedarf | L45: getragen von
A46: 43 | B46: Betreungsanteil in % eingeben (welchen prozentualen Anteil hat der Vater an der Betreuung?) | G46: =1-F46 -> 1 | L46: Vater | M46: Mutter | O46: =IF(F44<F42,1,0) -> 0 | P46: =IF(G44<G42,1,0) -> 0
A47: 44 | B47: vom Elternteil tatsächlich getragener Anteil aus dem Regelbedarf (z.B. Essensgeld in Kita oder Schule) | F47: =+L47 -> 160 | G47: =+M47 -> 60 | K47: <<<<<<<<<<<<<<<<Betrag: | L47: 160 | M47: 60 | O47: =+G45+F45+E43 -> 
A48: 45 | B48: ="Verteilung des Regel-Bedarfs nach Betreuungsanteilen: "&TEXT(F41,"0,00")&" Vater x "&TEXT(F46,"0%")& " / Mutter x : "&TEXT(G46,"0%") -> Verteilung des Regel-Bedarfs nach Betreuungsanteilen: 0,00 Vater x 0% / Mutter x : 100% | F48: =IF(F$4=0,0,+F46*(F41-L47-M47)+F47) -> 0 | G48: =IF(G$4=0,0,+G46*(F41-L47-M47)+G47) -> 0 | O48: =+G45+F45 -> 
A49: 46 | B49: ="Vom Elternteil erbrachter Naturalunterhalt: Vater: "&TEXT(F48,"0,00")&IF(F43>0," + "&TEXT(F43,"0,00"),"")&" / Mutter: "&TEXT(G48,"0,00")&IF(G43>0," + "&TEXT(G43,"0,00"),"") -> Vom Elternteil erbrachter Naturalunterhalt: Vater: 0,00 / Mutter: 0,00 | F49: =-F48-F43 -> 0 | G49: =-G48-G43 -> 0
A50: 47 | B50: =IFERROR(IF(F50>0,"Vom Vater an die Mutter für das Kind zu zahlender Unterhalt: "&TEXT(F45,"0,00")&" - "&TEXT(ABS(F49),"0,00")&" = "&TEXT(F50,"0,00 €"),"")&IF(G50>0,"Von der Mutter an den Vater für das Kind zu zahlender Unterhalt: "&TEXT(G45,"0,00")&" - "&TEXT(ABS(G49),"0,00")&" = "&TEXT(G50,"0,00 €"),""),"") -> Vom Vater an die Mutter für das Kind zu zahlender Unterhalt: - 0,00 = Von der Mutter an den Vater für das Kind zu zahlender Unterhalt: - 0,00 = | F50: =IFERROR(+F45+F49,"") ->  | G50: =IFERROR(+G45+G49,"") ->  | Q50: =+F40 -> 0
A51: 48 | B51: Wer erhält das Kindergeld? | P51: =IF(Q53=1,KindergeldHälfte,0) -> 0 | Q51: =IF(Q53=2,KindergeldHälfte,0) -> 0
A52: 49 | B52: ="Kindergeldhälfte ist nach Betreuungsquote auszukehren "&IF(Kindergeld_2=1,"von Vater an Mutter: ","von Mutter an Vater: ")&"in Höhe von: "&TEXT(ABS(Q51+P51),"0,00")&" x "&IF(Kindergeld_2=1,TEXT(G46,"##%"),TEXT(F46,"##%")) -> Kindergeldhälfte ist nach Betreuungsquote auszukehren von Vater an Mutter: in Höhe von: 0,00 x 100% | F52: =IF(E37="",0,ROUND(IF(Kindergeld_2=1,-ABS((P51+Q51)*G46),-G52),2)) -> 0 | G52: =IF(E37="",0,IF(Kindergeld_2=1,-F52,-ABS((P51+Q51)*F46))) -> 0
A53: 50 | B53: =IFERROR("Kindergeldhälfte ist "&IF(Kindergeld_2=1,"von V an M","von M an V")&" nach der Anteilsquote Barunterhalt auszukehren: "&IF(Kindergeld_2=1,TEXT(ABS(Kindergeldhälfte_2),"0,00")&" x "&TEXT(ABS(G35),"0,00%"),TEXT(ABS(Kindergeldhälfte_2),"0,00")&" x "&TEXT(F35,"0,0%")),"") ->  | F53: =IF(Geburtstag2="",0,IF(Kindergeld_2=1,-ABS(Kindergeldhälfte_2)*G35,-G53)) -> 0 | G53: =IF(Geburtstag2="",0,IF(Kindergeld_2=1,-F53,-ABS(Kindergeldhälfte_2)*F35)) -> 0 | P53: Kindergeld_2 | Q53: 1
A54: 51 | B54: =IFERROR("Ausgleichszahlung: "&IF(F54>0,"von Vater an Mutter: "&TEXT(F50,"#.##0,00")&IF(Kindergeld=1," + "&TEXT(ABS(F52),"##,00")&" + "&TEXT(ABS(F53),"#0,00")," - "&TEXT(ABS(F52),"##,00")&" - "&TEXT(ABS(F53),"#0,00")),"von Mutter an Vater: "&TEXT(F50,"#.##0,00")&IF(Kindergeld=1," + "&TEXT(ABS(F52),"##,00")&" + "&TEXT(ABS(F53),"#0,00")," - "&TEXT(ABS(F52),"##,00")&" - "&TEXT(ABS(F53),"#0,00"))),"") -> Ausgleichszahlung: von Vater an Mutter: - ,00 - 0,00 | F54: =IFERROR(ROUNDUP(+F50+G53+G52,Runden2),"") ->  | G54: =IFERROR(ROUNDUP(+G50+H53+H52,Runden2),"") -> 
A55: 52 | B55: Kindergeld: | F55: =IF(Geburtstag2="",0,IF(Kindergeld_2=1,-Kindergeldhälfte_2*2,0)) -> 0 | G55: =IF(Geburtstag2="",0,IF(Kindergeld_2=2,-Kindergeldhälfte_2*2,0)) -> 0
A56: 53 | B56: ="Liquidität Vater: "&TEXT(F31,"#.##0,00")&IF(Kindergeld_2=1," + Kindergeld "&TEXT(F55,"#.##0,00"),"")&IF(F54>0," - "&TEXT(F54,"#0,00")," + "&TEXT(ABS(F54),"#0,00"))&" / "&"Liquidität Mutter: "&TEXT(G31,"#.##0,00")&IF(Kindergeld_2=2," + Kindergeld "&TEXT(G55,"#0,00"),"")&IF(G54>0," - "&TEXT(G54,"#0,00")," + "&TEXT(ABS(G54),"#0,00"))&" : " -> Liquidität Vater: 0,00 + Kindergeld 0,00 - / Liquidität Mutter: 0,00 - : | F56: =IF(Geburtstag2="",0,F31+F55-F54) -> 0 | G56: =IF(Geburtstag2="",0,G31+G55-G54) -> 0
A57: 54 | B57: =IFERROR("./. Kindesunterhalt: Vater: "&TEXT(ABS(F49),"#.##0,00")&IF(F50>0," + "," - ")&TEXT(ABS(F50),"#.##0,00")&" / Mutter: "&TEXT(ABS(G49),"#.##0,00")&IF(G50>0," + "," - ")&TEXT(ABS(G50),"#.##0,00"),"") ->  | F57: =IFERROR(F49-F50,"") ->  | G57: =IFERROR(G49-G50,"") -> 
A58: 55 | B58: =IFERROR("anrechenbares Resteinkommen: Vater: "&TEXT(F31,"#.##0,00")&" - "&TEXT(ABS(F57),"#.##0,00")&" / Mutter: "&TEXT(G31,"#.##0,00")&" - "&TEXT(ABS(G57),"#.##0,00"),"") ->  | F58: =IF(Geburtstag2="",0,F31+F57) -> 0 | G58: =IF(Geburtstag2="",0,G31+G57) -> 0
A59: 56 | B59: III. weiteres Kind
A60: 57 | B60: =IFERROR(IF(Mangelfall=0,"angemessener Selbstbehalt nach Düsseldorfer Tabelle ","notwendiger Selbstbehalt nach Düsseldorfer Tabelle "),"") -> notwendiger Selbstbehalt nach Düsseldorfer Tabelle | F60: =IFERROR(-VLOOKUP(Berechnungsdatum,Selbstbehalte,IF(Mangelfall=1,3,5)),"") -> -1160 | G60: =IFERROR(-VLOOKUP(Berechnungsdatum,Selbstbehalte,IF(Mangelfall=1,3,5)),"") -> -1160
A61: 58 | B61: ="Einkommensteil zur Erfüllung von Unterhaltsansprüchen: Vater: "&IF(F58>0,TEXT(F58,"#.##0,00")&" - "&TEXT(ABS(F60),"#.##0,00"),"")&" / Mutter: "&IF(G58>0,TEXT(G58,"#.##0,00")&" - "&TEXT(ABS(G60),"#.##0,00"),"") -> Einkommensteil zur Erfüllung von Unterhaltsansprüchen: Vater: / Mutter: | F61: =IFERROR(+F58+F60,"") -> -1160 | G61: =IFERROR(+G60+G58,"") -> -1160 | K61: modellbedingter Mehrbedarf | L61: getragen von:
A62: 59 | B62: ="Anteilsquote mit der der Bedarf zu erfüllen ist: "&IF(F61>0,"V: "&TEXT(F61,"#.##0,00")&"/("&TEXT(F61,"#.##0,00")&" + "&TEXT(G61,"#.##0,00")&")","")&IF(G61>0,"; M: "&TEXT(G61,"#.##0,00")&"/("&TEXT(G61,"#.##0,00")&" + "&TEXT(F61,"#.##0,00")&")","") -> Anteilsquote mit der der Bedarf zu erfüllen ist: | F62: =+F9 ->  | G62: =+G9 ->  | L62: Vater | M62: Mutter
A63: 60 | E63: Geburtstagi | F63: Tabellenbedarf | K63: =IF(Wohnbedarfsreduktion,"Wohnmehrkosten 20%","") ->  | L63: =IF(L64>0,0,IF(Wohnbedarfsreduktion,F64*0.2,"")) ->  | M63: =IF(M64>0,0,IF(Wohnbedarfsreduktion,F64*0.2,"")) -> 
A64: 61 | F64: =IF(E64="",0,VLOOKUP(T12,IF(YEAR(Berechnungsdatum)<2021,DDorf20,DDorf21),P12+2)) -> 0 | K64: Wohnkosten:
A65: 62 | B65: =B64&IF(B25<>"",": ","")&"Bedarf aus zusammengerechnetem Einkommen nach Düsseldorfer Tabelle "&P65&IF(Mangelfall=1,"Mangelfall","") -> : Bedarf aus zusammengerechnetem Einkommen nach Düsseldorfer Tabelle Mangelfall | F65: =IF(E64=0,0,IF(Mangelfall=0,F64,VLOOKUP(1,IF(YEAR(Berechnungsdatum)<2021,DDorferTab20,DDorf21),P11+2))) -> 0 | K65: Fahrtkosten: | P65: =IF(E64="","","Altersst.: "&TEXT(P12,"0")) -> 
A66: 63 | B66: =+B40 -> Barbedarfsanteil des Kindergeldes wird im Rahmen der Kindergeldverteilung berücksichtigt | F66: =IF(E64="",0,-VLOOKUP(Berechnungsdatum,Kindergeldtabelle,4)/2) -> 0 | K66: Betreuungskosten:
A67: 64 | B67: =+B$14 -> Regelbarbedarf nach Düsseldorfer Tabelle | F67: =(F65+F66)*F$10*IF(Wohnbedarfsreduktion,0.8,1) -> 0 | K67: Bekleidung: | O67: Offen lassen
A68: 65 | B68: Barbedarfsanteile | F68: =IFERROR(F67*F62,0) -> 0 | G68: =IFERROR(F67*G62,0) -> 0 | K68: Sonstiges:
A69: 66 | B69: Wohn- und sonstiger Mehrbedarf für das Kind eingeben | F69: =+L69 -> 0 | G69: =+M69 -> 0 | K69: ="<<<<<<<<<<Summe: "&TEXT(L69+M69,"#.##0,00") -> <<<<<<<<<<Summe: 0,00 | L69: =SUM(L63:L68) -> 0 | M69: =SUM(M63:M68) -> 0
A70: 67 | B70: ="Begrenzung nach Einkommen Vater: "&IF(R$9>0,TEXT(R$9,"0,00")&" - "&TEXT(ABS(F66),"0,00")&IF(F69>0," + "&TEXT(F69+G69,"0,00")&" x "&TEXT(F$9,"0%"),""),"")&IF(S$9>0," / Mutter: "&TEXT(S$9,"0,00")&" - "&TEXT(ABS(F66),"0,00")&IF(F69+G69>0," + "&TEXT(G69+F69,"0,00")&" x "&TEXT(G$9,"0%"),""),"") -> Begrenzung nach Einkommen Vater: | F70: =IF(F58=0,0,VLOOKUP(F58,IF(YEAR(Berechnungsdatum)<2018,DDorferTab17,DDorferTab18),P$12+1)+F66+(F69+G69)*F62) -> 0 | G70: =IF(S$12>0,VLOOKUP(G58,IF(YEAR(Berechnungsdatum)<2018,DDorferTab17,DDorferTab18),P$12+1)+F66+(F69+G69)*G62,0) -> 0
A71: 68 | B71: =IFERROR(IF(O72+P72=0,"quotal berechnete Zahlbeträge aus Gesamtbedarf ("&TEXT(F67,"0,00")&" + "&TEXT(F69+G69,"0,00")&")"&IF(F62>0," Vater:"&IF(F71=F70," gekappt "," x "&TEXT(F62,"0,0%")),"")&IF(G62>0," / Mutter: "&IF(G71=G70," gekappt "," x "&TEXT(G62,"0,0%")),""),"Zahlbeträge unter Beachtung der Leistingsfähigkeit aus eigenem Einkommen:"),"") -> quotal berechnete Zahlbeträge aus Gesamtbedarf (0,00 + 0,00) Vater: x / Mutter: x | F71: =IFERROR(ROUND((F67+F69+G69)*F62,Runden2),"") ->  | G71: =IFERROR(ROUND((F67+F69+G69)*G62,Runden2),"") ->  | K71: Aus dem Regelbedarf | L71: getragen von
A72: 69 | B72: Betreungsanteil in % eingeben (welchen prozentualen Anteil hat der Vater an der Betreuung?) | G72: =1-F72 -> 1 | L72: Vater | M72: Mutter
A73: 70 | B73: vom Elternteil tatsächlich getragener Anteil aus dem Regelbedarf (z.B. Essensgeld in Kita oder Schule) | F73: =+L73 -> 0 | G73: =+M73 -> 0 | K73: <<<<<<<<<<<<<<<<Betrag:
A74: 71 | B74: ="Verteilung des Regel- Bedarfs nach Betreuungsanteilen: "&TEXT(F67,"0,00")&" Vater x "&TEXT(F72,"0%")& " / Mutter x : "&TEXT(G72,"0%") -> Verteilung des Regel- Bedarfs nach Betreuungsanteilen: 0,00 Vater x 0% / Mutter x : 100% | F74: =IF(F$4=0,0,+F72*(F67-L73-M73)+F73) -> 0 | G74: =IF(G$4=0,0,+G72*(F67-L73-M73)+G73) -> 0
A75: 72 | B75: ="Vom Elternteil erbrachter Naturalunterhalt: Vater: "&TEXT(F74,"0,00")&IF(F69>0," + "&TEXT(F69,"0,00"),"")&" / Mutter: "&TEXT(G74,"0,00")&IF(G69>0," + "&TEXT(G69,"0,00"),"") -> Vom Elternteil erbrachter Naturalunterhalt: Vater: 0,00 / Mutter: 0,00 | F75: =-F74-F69 -> 0 | G75: =-G74-G69 -> 0
A76: 73 | B76: =IFERROR(IF(F76>0,"Vom Vater an die Mutter für das Kind zu zahlender Unterhalt: "&TEXT(F71,"0,00")&" - "&TEXT(ABS(F75),"0,00")&" = "&TEXT(F76,"0,00 €"),"")&IF(G76>0,"Von der Mutter an den Vater für das Kind zu zahlender Unterhalt: "&TEXT(G71,"0,00")&" - "&TEXT(ABS(G75),"0,00")&" = "&TEXT(G76,"0,00 €"),""),"") -> Vom Vater an die Mutter für das Kind zu zahlender Unterhalt: - 0,00 = Von der Mutter an den Vater für das Kind zu zahlender Unterhalt: - 0,00 = | F76: =IFERROR(+F71+F75,"") ->  | G76: =IFERROR(+G71+G75,"") ->  | Q76: =+F66 -> 0
A77: 74 | B77: Wer erhält das Kindergeld? | P77: =IF(P79=1,Kindergeldhälfte_3,0) -> 0 | Q77: =IF(P79=2,Kindergeldhälfte_3,0) -> 0
A78: 75 | B78: ="Kindergeld ist nach Betreuungsquote auszukehren "&IF(Kindergeld_3=1,"von Vater an Mutter: ","von Mutter an Vater: ")&"in Höhe von: "&TEXT(ABS(Q77+P77),"0,00")&" x "&IF(Q79=1,TEXT(G72,"##%"),TEXT(F72,"##%")) -> Kindergeld ist nach Betreuungsquote auszukehren von Vater an Mutter: in Höhe von: 0,00 x % | F78: =IF(Geburtstag3="",0,ROUND(IF(Kindergeld_3=1,-ABS((P77+Q77)*G72),-G78),2)) -> 0 | G78: =IF(Geburtstag3="",0,IF(Kindergeld_3=1,-F78,-ABS((P77+Q77)*F72))) -> 0
A79: 76 | B79: =IFERROR("Kindergeldhälfte ist "&IF(Kindergeld_3=1,"vom Vater an die Mutter","von der Mutter an den Vater")&" nach der Anteilsquote Barunterhalt auszukehren: "&IF(Kindergeld_3=1,TEXT(ABS(Kindergeldhälfte_3),"0,00")&" x "&TEXT(ABS(G62),"0,00%"),TEXT(ABS(Kindergeldhälfte_3),"0,00")&" x "&TEXT(F62,"0,0%")),"") ->  | F79: =IF(Geburtstag3="",0,IFERROR(ROUND(IF(Kindergeld_3=1,-ABS(Kindergeldhälfte_3)*G62,-G79),2),0)) -> 0 | G79: =IF(Geburtstag3="",0,IF(Kindergeld_3=1,-F79,-ABS(Kindergeldhälfte_3)*F62)) -> 0 | O79: Kindergeld_3 | P79: 1
A80: 77 | B80: =IFERROR("Ausgleichszahlung: "&IF(G80<0,"von Mutter an Vater: "&IF(G76>0,TEXT(G76,"#.##0,00")&" + ","")&TEXT(ABS(G78),"#.##0,00")&" + "&TEXT(ABS(G79),"#.##0,00"),"von Vater an Mutter: "&IF(F76>0,TEXT(F76,"#.##0,00")&" + ","")&TEXT(ABS(F78),"#.##0,00")&" + "&TEXT(ABS(F79),"#.##0,00")&" - "&TEXT(ABS(G76),"#.##0,00")),"") ->  | F80: =IF(Geburtstag3="",0,ROUNDUP(F76+F78+F79,0)) -> 0 | G80: =-F80 -> 0
A81: 78 | B81: Kindergeld: | F81: =IF(Kindergeld_3=1,-Kindergeldhälfte_3*2,0) -> 0 | G81: =IF(Kindergeld_3=2,-Kindergeldhälfte_3*2,0) -> 0
A82: 79 | B82: ="Liquidität Vater: "&TEXT(F58,"#.##0,00")&IF(Kindergeld_3=1," + Kindergeld "&TEXT(F81,"#.##0,00"),"")&IF(F80>0," - "&TEXT(F80,"#0,00")," + "&TEXT(ABS(F80),"#0,00"))&" / "&"Liquidität Mutter: "&TEXT(G58,"#.##0,00")&IF(Kindergeld_3=2," + Kindergeld: "&TEXT(G81,"#0,00"),"")&IF(G80>0," - "&TEXT(G80,"#0,00")," + "&TEXT(ABS(G80+G55),"#0,00"))&" : " -> Liquidität Vater: 0,00 + Kindergeld 0,00 + 0,00 / Liquidität Mutter: 0,00 + 0,00 : | F82: =IF(E64="",0,F58+F81-F80) -> 0 | G82: =IF(E64="",0,G58+G81-G80) -> 0
A83: 80 | B83: =IFERROR("./. Kindesunterhalt: Vater: "&TEXT(ABS(F75),"#.##0,00")&IF(F76>0," + "," - ")&TEXT(ABS(F76),"#.##0,00")&" / Mutter: "&TEXT(ABS(G75),"#.##0,00")&IF(G76>0," + "," - ")&TEXT(ABS(G76),"#.##0,00"),"") ->  | F83: =IFERROR(F75-F76,"") ->  | G83: =IFERROR(G75-G76,"") ->  | O83: =+F82-G82 -> 0
A84: 81 | B84: =IFERROR("anrechenbares Resteinkommen: Vater: "&TEXT(F58,"#.##0,00")&IF(Kindergeld_3=1," + "&TEXT(F81,"#.##0,00"),"")&" - "&TEXT(ABS(F83),"#.##0,00")&" / Mutter: "&TEXT(G58,"#.##0,00")&" - "&TEXT(ABS(G83),"#.##0,00")&IF(Kindergeld_3=2," + "&TEXT(G81,"#.##0,00"),""),"") ->  | F84: =IFERROR(+F58+F83,"") ->  | G84: =IFERROR(+G58+G83,"") -> 

Sheet DDorfer (hidden)
A1: 0 | C1: Altersstufen, bis Alter | G1: Bedarfs-kontroll-betrag | H1: Stufe | I1: %
C2: 5 | D2: 11 | E2: 17 | F2: >17
A3: 1 | B3: 0 | C3: 342 | D3: 393 | E3: 460 | F3: 527 | G3: 880/1080 | H3: 1 | I3: 1
A4: 2 | B4: 1501 | C4: 360 | D4: 413 | E4: 483 | F4: 554 | G4: 1180 | H4: 2 | I4: 1.05
A5: 3 | B5: 1901 | C5: 377 | D5: 433 | E5: 506 | F5: 580 | G5: 1280 | H5: 3 | I5: 1.1
A6: 4 | B6: 2301 | C6: 394 | D6: 452 | E6: 529 | F6: 607 | G6: 1380 | H6: 4 | I6: 1.15
A7: 5 | B7: 2701 | C7: 411 | D7: 472 | E7: 552 | F7: 633 | G7: 1480 | H7: 5 | I7: 1.2
A8: 6 | B8: 3101 | C8: 438 | D8: 504 | E8: 589 | F8: 675 | G8: 1580 | H8: 6 | I8: 1.28
A9: 7 | B9: 3501 | C9: 466 | D9: 535 | E9: 626 | F9: 717 | G9: 1680 | H9: 7 | I9: 1.36
A10: 8 | B10: 3901 | C10: 493 | D10: 566 | E10: 663 | F10: 759 | G10: 1780 | H10: 8 | I10: 1.44
A11: 9 | B11: 4301 | C11: 520 | D11: 598 | E11: 700 | F11: 802 | G11: 1880 | H11: 9 | I11: 1.52
A12: 10 | B12: 4701 | C12: 548 | D12: 629 | E12: 736 | F12: 844 | G12: 1980 | H12: 10 | I12: 1.6
A14: Düsseldorfer Tabelle 2018 | K14: 1
A15: Differenz | B15: Einkommens-stufe | C15: Einkommen bis | D15: Altersstufen, Alter bis | K15: 1.05
D16: 5 | E16: 11 | F16: 17 | G16: 18 | H16: % | K16: 1.1
B17: § 1612a Abs. 1 BGB in % | D17: 0.87 | E17: 1 | F17: 1.17 | K17: 1.15
B18: 1 | C18: 0 | D18: 347 | E18: 399 | F18: 467 | G18: 535 | H18: 1 | I18: 1 | K18: 1.2
A19: 400 | B19: =+B18+1 -> 2 | C19: 1901 | D19: 365 | E19: 419 | F19: 491 | G19: 563 | H19: 1.0509 | I19: 2 | K19: 1.28
A20: =+A19 -> 400 | B20: =+B19+1 -> 3 | C20: =+C19+A20 -> 2301 | D20: 382 | E20: 440 | F20: 515 | G20: 590 | H20: 1.1018 | I20: 3 | K20: 1.36
A21: =+A20 -> 400 | B21: 4 | C21: 2701 | D21: 399 | E21: 459 | F21: 537 | G21: 615 | H21: 1.1501 | I21: 4 | K21: 1.44
A22: 400 | B22: 5 | C22: 3101 | D22: 417 | E22: 479 | F22: 561 | G22: 643 | H22: 1.201 | I22: 5 | K22: 1.52
A23: 400 | B23: 6 | C23: 3501 | D23: 445 | E23: 512 | F23: 599 | G23: 686 | H23: 1.2824 | I23: 6 | K23: 1.6
A24: 400 | B24: 7 | C24: 3901 | D24: 472 | E24: 543 | F24: 636 | G24: 729 | H24: 1.3613 | I24: 7
A25: 400 | B25: 8 | C25: 4301 | D25: 500 | E25: 575 | F25: 673 | G25: 771 | H25: 1.4402 | I25: 8
A26: 400 | B26: 9 | C26: 4701 | D26: 528 | E26: 607 | F26: 711 | G26: 815 | H26: 1.5216 | I26: 9
A27: 400 | B27: 10 | C27: 5101 | D27: 555 | E27: 639 | F27: 747 | G27: 855 | H27: 1.6005 | I27: 10
L28: Kindergeldtabelle
M29: 1. | N29: 2. | O29: 3. | P29: 4.
C30: Runden | D30: 6 | L30: 2018-01-01 | M30: 194 | N30: 194 | O30: 200 | P30: 225
L31: 2019-07-01 | M31: 204 | N31: 204 | O31: 210 | P31: 235
L32: 2020-01-01 | M32: 204 | N32: 204 | O32: 210 | P32: 235
L33: 2021-01-01 | M33: 219 | N33: 219 | O33: 225 | P33: 250
L34: 2022-01-01 | M34: 219 | N34: 219 | O34: 225 | P34: 250
A35: Düsseldorfer Tabelle 2019
A36: Differenz | B36: Einkommens-stufe | C36: Einkommen bis | D36: Altersstufen, Alter bis
D37: 5 | E37: 11 | F37: 17 | G37: 18 | H37: %
B38: § 1612a Abs. 1 BGB in % | D38: 0.87 | E38: 1 | F38: 1.17 | L38: Selbstbehalt
B39: 1 | C39: 0 | D39: 354 | E39: 406 | F39: 476 | G39: 527 | H39: 1 | I39: 1 | L39: 2019-01-01 | M39: 880 | N39: 1080 | O39: 1200 | P39: 1300
A40: 400 | B40: =+B39+1 -> 2 | C40: 1901 | D40: 372 | E40: 427 | F40: 500 | G40: 554 | H40: 1.0509 | I40: 2 | L40: 2020-01-01 | M40: =+Berechnungsschema!L27 -> 0 | N40: 1160 | O40: 1280 | P40: 1400
A41: =+A40 -> 400 | B41: =+B40+1 -> 3 | C41: =+C40+A41 -> 2301 | D41: 390 | E41: 447 | F41: 524 | G41: 580 | H41: 1.1018 | I41: 3 | L41: 2021-01-01 | M41: 960 | N41: 1160 | O41: 1280 | P41: 1400
A42: =+A41 -> 400 | B42: 4 | C42: 2701 | D42: 408 | E42: 467 | F42: 548 | G42: 607 | H42: 1.1501 | I42: 4 | L42: 2022-01-01 | M42: 960 | N42: 1160 | O42: 1280 | P42: 1400
A43: 400 | B43: 5 | C43: 3101 | D43: 425 | E43: 488 | F43: 572 | G43: 633 | H43: 1.201 | I43: 5
A44: 400 | B44: 6 | C44: 3501 | D44: 454 | E44: 520 | F44: 610 | G44: 675 | H44: 1.2824 | I44: 6
A45: 400 | B45: 7 | C45: 3901 | D45: 482 | E45: 553 | F45: 648 | G45: 717 | H45: 1.3613 | I45: 7
A46: 400 | B46: 8 | C46: 4301 | D46: 510 | E46: 585 | F46: 686 | G46: 759 | H46: 1.4402 | I46: 8
A47: 400 | B47: 9 | C47: 4701 | D47: 539 | E47: 618 | F47: 724 | G47: 802 | H47: 1.5216 | I47: 9
A48: 400 | B48: 10 | C48: 5101 | D48: 567 | E48: 650 | F48: 762 | G48: 844 | H48: 1.6005 | I48: 10
A52: Düsseldorfer Tabelle 2020
A53: Differenz | B53: Einkommens-stufe | C53: Einkommen bis | D53: Altersstufen, Alter bis
D54: 5 | E54: 11 | F54: 17 | G54: 18 | H54: %
B55: § 1612a Abs. 1 BGB in % | D55: 0.87 | E55: 1 | F55: 1.17
B56: 1 | C56: 0 | D56: 369 | E56: 424 | F56: 497 | G56: 530 | H56: 1 | I56: 1
A57: 400 | B57: =+B56+1 -> 2 | C57: 1901 | D57: 388 | E57: 446 | F57: 522 | G57: 557 | H57: 1.0509 | I57: 2
A58: =+A57 -> 400 | B58: =+B57+1 -> 3 | C58: =+C57+A58 -> 2301 | D58: 406 | E58: 467 | F58: 547 | G58: 583 | H58: 1.1018 | I58: 3
A59: =+A58 -> 400 | B59: 4 | C59: 2701 | D59: 425 | E59: 488 | F59: 572 | G59: 610 | H59: 1.1501 | I59: 4
A60: 400 | B60: 5 | C60: 3101 | D60: 443 | E60: 509 | F60: 597 | G60: 636 | H60: 1.201 | I60: 5
A61: 400 | B61: 6 | C61: 3501 | D61: 473 | E61: 543 | F61: 637 | G61: 679 | H61: 1.2824 | I61: 6
A62: 400 | B62: 7 | C62: 3901 | D62: 502 | E62: 577 | F62: 676 | G62: 721 | H62: 1.3613 | I62: 7
A63: 400 | B63: 8 | C63: 4301 | D63: 532 | E63: 611 | F63: 716 | G63: 764 | H63: 1.4402 | I63: 8
A64: 400 | B64: 9 | C64: 4701 | D64: 561 | E64: 645 | F64: 756 | G64: 806 | H64: 1.5216 | I64: 9
A65: 400 | B65: 10 | C65: 5101 | D65: 591 | E65: 679 | F65: 796 | G65: 848 | H65: 1.6005 | I65: 10
A69: Düsseldorfer Tabelle 2021
A70: Differenz | B70: Einkommens-stufe | C70: Einkommen ab | D70: Altersstufen, Alter bis
D71: 5 | E71: 11 | F71: 17 | G71: 18 | H71: %
B72: § 1612a Abs. 1 BGB in % | D72: 0.87 | E72: 1 | F72: 1.17
B73: 1 | C73: 0 | D73: 393 | E73: 451 | F73: 528 | G73: 564 | H73: 1 | I73: 1 | K73: 2000
A74: 400 | B74: =+B73+1 -> 2 | C74: 1901 | D74: 413 | E74: 474 | F74: 555 | G74: 593 | H74: 1.0509 | I74: 2 | K74: =VLOOKUP(K73,C73:G82,3) -> 474
A75: =+A74 -> 400 | B75: =+B74+1 -> 3 | C75: =+C74+A75 -> 2301 | D75: 433 | E75: 497 | F75: 581 | G75: 621 | H75: 1.1018 | I75: 3
A76: =+A75 -> 400 | B76: 4 | C76: 2701 | D76: 452 | E76: 519 | F76: 608 | G76: 649 | H76: 1.1501 | I76: 4
A77: 400 | B77: 5 | C77: 3101 | D77: 472 | E77: 542 | F77: 634 | G77: 677 | H77: 1.201 | I77: 5
A78: 400 | B78: 6 | C78: 3501 | D78: 504 | E78: 578 | F78: 676 | G78: 722 | H78: 1.2824 | I78: 6
A79: 400 | B79: 7 | C79: 3901 | D79: 535 | E79: 614 | F79: 719 | G79: 768 | H79: 1.3613 | I79: 7
A80: 400 | B80: 8 | C80: 4301 | D80: 566 | E80: 650 | F80: 761 | G80: 813 | H80: 1.4402 | I80: 8
A81: 400 | B81: 9 | C81: 4701 | D81: 598 | E81: 686 | F81: 803 | G81: 858 | H81: 1.5216 | I81: 9
A82: 400 | B82: 10 | C82: 5101 | D82: 629 | E82: 722 | F82: 845 | G82: 903 | H82: 1.6005 | I82: 10
A86: Düsseldorfer Tabelle 2022
A87: Differenz | B87: Einkommens-stufe | C87: Einkommen ab | D87: Altersstufen, Alter bis
D88: 5 | E88: 11 | F88: 17 | G88: 18 | H88: %
B89: § 1612a Abs. 1 BGB in % | D89: 0.87 | E89: 1 | F89: 1.17
B90: 1 | C90: 0 | D90: 396 | E90: 455 | F90: 533 | G90: 569 | H90: 1
A91: 400 | B91: =+B90+1 -> 2 | C91: 1901 | D91: 416 | E91: 478 | F91: 560 | G91: 598 | H91: 1.0509
A92: =+A91 -> 400 | B92: =+B91+1 -> 3 | C92: =+C91+A92 -> 2301 | D92: 436 | E92: 501 | F92: 587 | G92: 626 | H92: 1.1018
A93: =+A92 -> 400 | B93: 4 | C93: 2701 | D93: 456 | E93: 524 | F93: 613 | G93: 655 | H93: 1.1501
A94: 400 | B94: 5 | C94: 3101 | D94: 476 | E94: 546 | F94: 640 | G94: 683 | H94: 1.201
A95: 400 | B95: 6 | C95: 3501 | D95: 507 | E95: 583 | F95: 683 | G95: 729 | H95: 1.2824
A96: 400 | B96: 7 | C96: 3901 | D96: 539 | E96: 619 | F96: 725 | G96: 774 | H96: 1.3613
A97: 400 | B97: 8 | C97: 4301 | D97: 571 | E97: 656 | F97: 768 | G97: 820 | H97: 1.4402
A98: 400 | B98: 9 | C98: 4701 | D98: 602 | E98: 592 | F98: 811 | G98: 865 | H98: 1.5216
A99: 400 | B99: 10 | C99: 5101 | D99: 634 | E99: 728 | F99: 853 | G99: 911 | H99: 1.6005
A100: =+C100-C99 -> 400 | B100: 11 | C100: 5501 | D100: 666 | E100: 765 | F100: 896 | G100: 956 | H100: =ROUND(D100/D$90,2) -> 1.68
A101: =+C101-C100 -> 700 | B101: 12 | C101: 6201 | D101: 697 | E101: 801 | F101: 939 | G101: 1002 | H101: =ROUND(D101/D$90,2) -> 1.76
A102: 800 | B102: 13 | C102: 7001 | D102: 729 | E102: 838 | F102: 981 | G102: 1047 | H102: 1.84
A103: 1000 | B103: 14 | C103: 8001 | D103: 761 | E103: 874 | F103: 1024 | G103: 1093 | H103: 1.92
A104: 1500 | B104: 15 | C104: 9501 | D104: 792 | E104: 910 | F104: 1066 | G104: 1138 | H104: 2

Sheet Abänderung (hidden)
C1: Kind 1 | D1: Kind 2 | F1: Kind 1 | G1: Kind 2
B2: Alter: | C2: 8 | F2: =+C2 -> 8 | G2: =+D2 -> 0
B3: Altersstufe | C3: =IF(C2>=18,4,IF(C2>=12,3,IF(C2>=6,2,1))) -> 2 | D3: =IF(D2>=18,4,IF(D2>=12,3,IF(D2>=6,2,1))) -> 1 | F3: =IF(F2>=18,4,IF(F2>=12,3,IF(F2>=6,2,1))) -> 2 | G3: =IF(G2>=18,4,IF(G2>=12,3,IF(G2>=6,2,1))) -> 1
B4: ="Einkommen / Einkommensstufe: "&TEXT(E4,"#")&" / "&TEXT(H4,"#") -> Einkommen / Einkommensstufe: 5 / 4 | C4: 3100 | E4: =IF(IF(Einkommen<=1500,1,1+ROUNDUP((Einkommen-1500)/400,0))>10,10,IF(Einkommen<=1500,1,1+ROUNDUP((Einkommen-1500)/400,0))) -> 5 | F4: =+Einkommen -> 3100 | H4: =IF(Einkommen<=1900,1,1+ROUNDUP((Einkommen-1900)/400,0)) -> 4
B5: Tabellenbedarf | C5: =VLOOKUP(Einkommen+IF(D2=0,400,0),DDorferTab17,C3+1) -> 504 | D5: =IF(D2=0,0,VLOOKUP(Einkommen,DDorferTab17,D3+1)) -> 0 | F5: =VLOOKUP(Einkommen+IF(G2=0,400,0),DDorferTab18,F3+1) -> 479 | G5: =IF(G2=0,0,VLOOKUP(Einkommen,DDorferTab18,G3+1)) -> 0
B6: ./. Kindergeld | C6: -96 | D6: =IF(D2=0,0,-96) -> 0 | F6: =+C6 -> -96 | G6: =+D6 -> 0
B7: Barbedarf | C7: =+C6+C5 -> 408 | D7: =+D6+D5 -> 0 | F7: =+F6+F5 -> 383 | G7: =+G6+G5 -> 0 | H7: =+G7/D7 -> 
B8: Selbstbehalt | C8: 1080 | F8: 1080
B9: angemessener Selbstbehalt | C9: 1300 | F9: 1300
B10: Leistungsfähigkeit zum notw. SB | C10: =Einkommen-C8 -> 2020 | F10: =Einkommen-F8 -> 2020
B11: Quote zum notw. SB | C11: =+C10/(C7+D7) -> 4.950980392 | F11: =+F10/(F7+G7) -> 5.274151436
B12: Unterhalt | C12: =ROUND(IF(C11<1,C11*C7,C7),0) -> 408 | D12: =ROUND(IF(C11<1,C11*D7,D7),0) -> 0 | F12: =ROUND(IF(F11<1,F11*F7,F7),0) -> 383 | G12: =ROUND(IF(F11<1,F11*G7,G7),0) -> 0
B13: Abweichung | F13: =+F12/C12-1 -> -0.0612745098 | G13: =IF(G2=0,"",+G12/D12-1) -> 
B14: Resteinkommen Pflichtiger: | C14: =+Einkommen-C12-D12 -> 2692 | F14: =+Einkommen-F12-G12 -> 2717
B15: Leistungsfähigkeit zum angem SB | C15: =+Einkommen-C9 -> 1800 | F15: =+Einkommen-F9 -> 1800
B16: Quote zum angem. SB | C16: =C15/(C12+D12) -> 4.411764706 | F16: =F15/(F12+G12) -> 4.699738903
B17: ="Bedarfsreduktion E_Stufe "&TEXT(E4,"#") &" um -1:" -> Bedarfsreduktion E_Stufe 5 um -1: | C17: =VLOOKUP(Einkommen-400,DDorferTab17,C3+1) -> 452 | D17: =VLOOKUP(Einkommen-400,DDorferTab17,D3+1) -> 394 | F17: =VLOOKUP(Einkommen-400,DDorferTab18,F3+1) -> 440 | G17: =VLOOKUP(Einkommen-400,DDorferTab18,G3+1) -> 382
B18: =+B6 -> ./. Kindergeld | C18: =+C6 -> -96 | D18: =+D6 -> 0 | F18: =+F6 -> -96 | G18: =+G6 -> 0
B19: Barbedarf | C19: =+C18+C17 -> 356 | D19: =+D18+D17 -> 394 | F19: =+F18+F17 -> 344 | G19: =+G18+G17 -> 382
B20: Quote | C20: =IF((Einkommen-C8)/(C19+D19)>1,1,(Einkommen-C8)/(C19+D19)) -> 1 | F20: =IF((Einkommen-F8)/(F19+G19)>1,1,(Einkommen-F8)/(F19+G19)) -> 1
C21: =+C20*C19 -> 356 | D21: =+C20*D19 -> 394 | F21: =+F20*F19 -> 344 | G21: =+F20*G19 -> 382
B22: Resteinkommen Pflichtiger: | C22: =+Einkommen-C21-D21 -> 2350 | F22: =+Einkommen-F21-G21 -> 2374
